[Event "FIDE WYCC Open U14 2023"]
[Site "Montesilvano"]
[Date "2023.11.14"]
[Round "2.22"]
[White "Durovka, Marek"]
[Black "Haug, Havard"]
[Result "0-1"]
[ECO "A13"]
[WhiteElo "1924"]
[BlackElo "2223"]
[Annotator "ChessBase"]
[PlyCount "66"]
[EventDate "2023.11.13"]
[EventType "swiss"]
[EventCountry "ITA"]
[SourceTitle "playchess.com"]
[Source "ChessBase"]
[SourceQuality "1"]
[TimeControl "40/5400+30:1800+30"]

1. Nf3 {[%emt 0:00:04]} d5 {[%emt 0:00:06]} 2. c4 {[%emt 0:00:16]} e6 {[%emt 0:00:12]} 3. g3 {[%emt 0:00:04]} Nf6 {[%emt 0:00:25]} 4. Bg2 {[%emt 0:00:13]} Be7 {[%emt 0:00:49]} 5. d4 {[%emt 0:00:24]} O-O {[%emt 0:01:17]} 6. Qc2 {[%emt 0:00:46]} c5 {[%emt 0:01:09]} 7. O-O {[%emt 0:00:31]} cxd4 {[%emt 0:05:48]} 8. Nxd4 {[%emt 0:03:29]} Qb6 {[%emt 0:03:39]} 9. Nb3 {[%emt 0:08:23]} Nc6 {[%emt 0:02:49]} 10. N1d2 {[%emt 0:09:18]} Rd8 {[%emt 0:05:45]} 11. a3 {[%emt 0:11:25]} a5 {[%emt 0:07:22]} 12. Nf3 {[%emt 0:08:52]} a4 {[%emt 0:04:16]} 13. Nbd2 {[%emt 0:03:49]} h6 {[%emt 0:07:34]} 14. Rd1 {[%emt 0:10:04]} Qc5 {[%emt 0:10:58]} 15. Nf1 {[%emt 0:21:21]} b5 {[%emt 0:03:33]} 16. Be3 {[%emt 0:01:34]} Qxc4 {[%emt 0:00:39]} 17. Qxc4 {[%emt 0:02:04]} bxc4 {[%emt 0:01:58]} 18. N1d2 {[%emt 0:03:23]} Rb8 {[%emt 0:01:01]} 19. Nd4 {[%emt 0:02:02]} Na5 {[%emt 0:01:03]} 20. Bf4 {[%emt 0:01:54]} Bd6 {[%emt 0:00:50]} 21. Bxd6 {[%emt 0:03:45]} Rxd6 {[%emt 0:00:19]} 22. Nb1 {[%emt 0:02:50]} Rxb2 {[%emt 0:00:57]} 23. Nc3 {[%emt 0:00:06]} Bd7 {[%emt 0:00:31]} 24. Rab1 {[%emt 0:00:48]} Rdb6 {[%emt 0:00:20]} 25. Rxb2 {[%emt 0:00:08]} Rxb2 {[%emt 0:00:09]} 26. e4 {[%emt 0:01:07]} e5 {[%emt 0:00:43]} 27. Nf3 {[%emt 0:02:29]} d4 {[%emt 0:00:32]} 28. Nxd4 {[%emt 0:02:28]} exd4 {[%emt 0:00:16]} 29. Rxd4 {[%emt 0:00:01]} Rc2 {[%emt 0:00:21]} 30. Nd1 {[%emt 0:00:48]} Rc1 {[%emt 0:04:11]} 31. e5 {[%emt 0:00:59]} c3 {[%emt 0:00:08]} 32. Bf1 {[%emt 0:00:25]} c2 {[%emt 0:00:16]} 33. Ne3 {[%emt 0:00:38]} Rxf1+ {[%emt 0:00:17]} 0-1

[Event "FIDE WYCC Open U14 2023"]
[Site "Montesilvano"]
[Date "2023.11.14"]
[Round "2.23"]
[White "Ermitsch, Magnus"]
[Black "Dumanuly, Sultanbeibarys"]
[Result "1-0"]
[ECO "B60"]
[WhiteElo "2206"]
[BlackElo "1931"]
[Annotator "ChessBase"]
[PlyCount "83"]
[EventDate "2023.11.13"]
[EventType "swiss"]
[EventCountry "ITA"]
[SourceTitle "playchess.com"]
[Source "ChessBase"]
[SourceQuality "1"]
[TimeControl "40/5400+30:1800+30"]

1. e4 {[%emt 0:00:03]} c5 {[%emt 0:00:04]} 2. Nf3 {[%emt 0:00:05]} d6 {[%emt 0:00:04]} 3. d4 {[%emt 0:00:43]} cxd4 {[%emt 0:00:06]} 4. Nxd4 {[%emt 0:00:05]} Nf6 {[%emt 0:00:05]} 5. Nc3 {[%emt 0:00:06]} Nc6 {[%emt 0:00:05]} 6. Bg5 {[%emt 0:00:44]} Bd7 {[%emt 0:00:07]} 7. Nxc6 {[%emt 0:01:36]} Bxc6 {[%emt 0:00:21]} 8. Bxf6 {[%emt 0:00:13]} gxf6 {[%emt 0:00:18]} 9. Bb5 {[%emt 0:00:07]} Bxb5 {[%emt 0:05:15]} 10. Nxb5 {[%emt 0:00:01]} Qa5+ {[%emt 0:05:36]} 11. Nc3 {[%emt 0:00:39]} Qg5 {[%emt 0:02:37]} 12. g3 {[%emt 0:04:19]} e6 {[%emt 0:02:18]} 13. Qe2 {[%emt 0:10:21]} a6 {[%emt 0:04:58]} 14. f4 {[%emt 0:02:45]} Qc5 {[%emt 0:01:00]} 15. O-O-O {[%emt 0:00:30]} b5 {[%emt 0:03:33]} 16. Qg2 {[%emt 0:30:56]} Rc8 {[%emt 0:11:08]} 17. e5 {[%emt 0:02:28]} fxe5 {[%emt 0:09:49]} 18. Ne4 {[%emt 0:01:05]} Qe3+ {[%emt 0:00:58]} 19. Kb1 {[%emt 0:00:14]} Be7 {[%emt 0:04:02]} 20. Nxd6+ {[%emt 0:04:55]} Bxd6 {[%emt 0:00:08]} 21. Rxd6 {[%emt 0:00:14]} e4 {[%emt 0:04:58]} 22. Rhd1 {[%emt 0:06:55]} O-O {[%emt 0:05:43]} 23. R6d2 {[%emt 0:01:52]} Rc4 {[%emt 0:11:02]} 24. Re2 {[%emt 0:11:43]} Rd4 {[%emt 0:09:18]} 25. Rc1 {[%emt 0:01:19]} Qf3 {[%emt 0:00:05]} 26. Qxf3 {[%emt 0:00:11]} exf3 {[%emt 0:00:04]} 27. Rf2 {[%emt 0:00:07]} Rc8 {[%emt 0:05:04]} 28. Re1 {[%emt 0:02:33]} b4 {[%emt 0:04:35]} 29. Kc1 {[%emt 0:00:48]} Rdc4 {[%emt 0:01:09]} 30. Re3 {[%emt 0:02:02]} R8c5 {[%emt 0:01:22]} 31. Rexf3 {[%emt 0:00:58]} Re4 {[%emt 0:01:09]} 32. a3 {[%emt 0:03:18]} a5 {[%emt 0:03:02]} 33. axb4 {[%emt 0:01:41]} axb4 {[%emt 0:00:05]} 34. Kd2 {[%emt 0:01:27]} Ra5 {[%emt 0:01:43]} 35. Re2 {[%emt 0:01:28]} Rc4 {[%emt 0:01:10]} 36. Rb3 {[%emt 0:01:04]} Rd5+ {[%emt 0:03:28]} 37. Rd3 {[%emt 0:00:08]} Ra5 {[%emt 0:00:19]} 38. b3 {[%emt 0:03:14]} Rc7 {[%emt 0:01:26]} 39. Rd4 {[%emt 0:00:25]} Ra2 {[%emt 0:00:37]} 40. Kc1 {[%emt 0:00:00]} Rb7 {[%emt 0:00:00]} 41. Ree4 {[%emt 0:02:59]} Ra1+ {[%emt 0:07:25]} 42. Kb2 {[%emt 0:01:37]} 1-0

[Event "FIDE WYCC Open U14 2023"]
[Site "Montesilvano"]
[Date "2023.11.14"]
[Round "2.24"]
[White "Ral Lustig, Melvin"]
[Black "Dhruva Thota"]
[Result "1/2-1/2"]
[ECO "B99"]
[WhiteElo "1911"]
[BlackElo "2192"]
[Annotator "ChessBase"]
[PlyCount "81"]
[EventDate "2023.11.13"]
[EventType "swiss"]
[EventCountry "ITA"]
[SourceTitle "playchess.com"]
[Source "ChessBase"]
[SourceQuality "1"]
[TimeControl "40/5400+30:1800+30"]

1. e4 {[%emt 0:00:03]} c5 {[%emt 0:00:14]} 2. Nf3 {[%emt 0:00:07]} d6 {[%emt 0:00:05]} 3. d4 {[%emt 0:00:06]} cxd4 {[%emt 0:00:04]} 4. Nxd4 {[%emt 0:00:04]} Nf6 {[%emt 0:00:10]} 5. Nc3 {[%emt 0:00:06]} a6 {[%emt 0:00:17]} 6. Bg5 {[%emt 0:00:10]} e6 {[%emt 0:00:58]} 7. f4 {[%emt 0:00:22]} Be7 {[%emt 0:00:23]} 8. Qf3 {[%emt 0:00:06]} Qc7 {[%emt 0:00:09]} 9. O-O-O {[%emt 0:00:12]} Nbd7 {[%emt 0:00:10]} 10. g4 {[%emt 0:00:15]} h6 {[%emt 0:00:57]} 11. Bxf6 {[%emt 0:00:08]} Bxf6 {[%emt 0:00:05]} 12. h4 {[%emt 0:00:06]} Nb6 {[%emt 0:00:07]} 13. g5 {[%emt 0:00:21]} Bxd4 {[%emt 0:00:11]} 14. Rxd4 {[%emt 0:00:05]} Qc5 {[%emt 0:00:07]} 15. Rd2 {[%emt 0:00:04]} Bd7 {[%emt 0:00:15]} 16. Be2 {[%emt 0:00:08]} Na4 {[%emt 0:00:17]} 17. Rd3 {[%emt 0:00:21]} Rc8 {[%emt 0:00:02]} 18. Bd1 {[%emt 0:00:11]} Nxc3 {[%emt 0:00:48]} 19. Rxc3 {[%emt 0:00:06]} Qa5 {[%emt 0:00:12]} 20. Ra3 {[%emt 0:01:11]} Qd8 {[%emt 0:11:21]} 21. gxh6 {[%emt 0:07:38]} Rxh6 {[%emt 0:02:17]} 22. h5 {[%emt 0:02:22]} Bc6 {[%emt 0:03:46]} 23. Qe3 {[%emt 0:04:07]} d5 {[%emt 0:19:34]} 24. Rg1 {[%emt 0:12:21]} dxe4 {[%emt 0:15:14]} 25. Rxg7 {[%emt 0:00:49]} Qf6 {[%emt 0:01:28]} 26. Rg8+ {[%emt 0:00:21]} Kd7 {[%emt 0:00:02]} 27. Rxc8 {[%emt 0:00:40]} Kxc8 {[%emt 0:00:02]} 28. Rc3 {[%emt 0:01:17]} Qg7 {[%emt 0:04:52]} 29. Be2 {[%emt 0:21:08]} Kc7 {[%emt 0:10:59]} 30. Qc5 {[%emt 0:09:37]} f5 {[%emt 0:05:07]} 31. Qa5+ {[%emt 0:08:29]} Kd7 {[%emt 0:08:35]} 32. Qc5 {[%emt 0:05:50]} e5 {[%emt 0:04:19]} 33. fxe5 {[%emt 0:00:56]} Re6 {[%emt 0:00:47]} 34. Bc4 {[%emt 0:09:34]} Rxe5 {[%emt 0:00:22]} 35. Qd4+ {[%emt 0:00:05]} Ke7 {[%emt 0:01:17]} 36. b3 {[%emt 0:06:44]} Kf8 {[%emt 0:07:55]} 37. Qd8+ {[%emt 0:03:39]} Re8 {[%emt 0:02:07]} 38. Qd6+ {[%emt 0:00:04]} Qe7 {[%emt 0:00:41]} 39. Qh6+ {[%emt 0:00:21]} Qg7 {[%emt 0:00:26]} 40. Qd6+ {[%emt 0:00:00]} Qe7 {[%emt 0:00:00]} 41. Qh6+ {[%emt 0:00:26]} 1/2-1/2

[Event "FIDE WYCC Open U14 2023"]
[Site "Montesilvano"]
[Date "2023.11.14"]
[Round "2.25"]
[White "Katsanis, Vasileios Dim"]
[Black "Milovic, Ilija"]
[Result "1-0"]
[ECO "D30"]
[WhiteElo "2173"]
[BlackElo "1908"]
[Annotator "ChessBase"]
[PlyCount "77"]
[EventDate "2023.11.13"]
[EventType "swiss"]
[EventCountry "ITA"]
[SourceTitle "playchess.com"]
[Source "ChessBase"]
[SourceQuality "1"]
[TimeControl "40/5400+30:1800+30"]

1. d4 {[%emt 0:00:03]} d5 {[%emt 0:00:09]} 2. c4 {[%emt 0:00:03]} e6 {[%emt 0:00:08]} 3. cxd5 {[%emt 0:00:13]} exd5 {[%emt 0:00:09]} 4. Nc3 {[%emt 0:00:05]} c6 {[%emt 0:00:10]} 5. Qc2 {[%emt 0:00:37]} Bd6 {[%emt 0:00:14]} 6. Nf3 {[%emt 0:00:08]} h6 {[%emt 0:00:16]} 7. g3 {[%emt 0:00:15]} Nf6 {[%emt 0:09:29]} 8. Bf4 {[%emt 0:00:32]} O-O {[%emt 0:06:08]} 9. Bxd6 {[%emt 0:02:20]} Qxd6 {[%emt 0:02:04]} 10. Bg2 {[%emt 0:00:02]} Re8 {[%emt 0:01:49]} 11. O-O {[%emt 0:00:25]} Ne4 {[%emt 0:03:07]} 12. Ne5 {[%emt 0:02:04]} Bf5 {[%emt 0:09:04]} 13. Nxe4 {[%emt 0:01:31]} dxe4 {[%emt 0:00:19]} 14. Rfd1 {[%emt 0:01:43]} Nd7 {[%emt 0:02:32]} 15. Nc4 {[%emt 0:03:21]} Qe6 {[%emt 0:05:05]} 16. Ne3 {[%emt 0:01:51]} Bh3 {[%emt 0:01:23]} 17. d5 {[%emt 0:05:40]} cxd5 {[%emt 0:02:39]} 18. Rxd5 {[%emt 0:01:21]} Bxg2 {[%emt 0:01:16]} 19. Kxg2 {[%emt 0:00:50]} Nf6 {[%emt 0:02:39]} 20. Rd4 {[%emt 0:03:40]} Rac8 {[%emt 0:06:38]} 21. Qb3 {[%emt 0:02:54]} Qxb3 {[%emt 0:03:33]} 22. axb3 {[%emt 0:01:14]} a6 {[%emt 0:06:16]} 23. Rad1 {[%emt 0:01:24]} Re6 {[%emt 0:05:00]} 24. Rb4 {[%emt 0:04:37]} b5 {[%emt 0:01:02]} 25. g4 {[%emt 0:02:15]} Rc5 {[%emt 0:07:27]} 26. h3 {[%emt 0:03:30]} h5 {[%emt 0:01:42]} 27. Kg3 {[%emt 0:02:31]} Rb6 {[%emt 0:04:39]} 28. Rbd4 {[%emt 0:01:45]} hxg4 {[%emt 0:03:40]} 29. hxg4 {[%emt 0:01:40]} g6 {[%emt 0:00:58]} 30. b4 {[%emt 0:02:31]} Re5 {[%emt 0:01:56]} 31. Rd6 {[%emt 0:01:14]} Re6 {[%emt 0:02:06]} 32. Rd8+ {[%emt 0:02:05]} Kg7 {[%emt 0:00:10]} 33. g5 {[%emt 0:05:47]} Nh5+ {[%emt 0:00:17]} 34. Kg4 {[%emt 0:00:09]} Rb7 {[%emt 0:01:34]} 35. Ra8 {[%emt 0:12:26]} f5+ {[%emt 0:03:23]} 36. Nxf5+ {[%emt 0:00:46]} gxf5+ {[%emt 0:00:27]} 37. Kxh5 {[%emt 0:00:11]} e3 {[%emt 0:02:55]} 38. f3 {[%emt 0:01:26]} Rc7 {[%emt 0:00:33]} 39. Rdd8 {[%emt 0:02:45]} 1-0

[Event "FIDE WYCC Open U14 2023"]
[Site "Montesilvano"]
[Date "2023.11.14"]
[Round "2.26"]
[White "Panda, Barnabas"]
[Black "Sodbilegt, Naranbold"]
[Result "1/2-1/2"]
[ECO "E32"]
[WhiteElo "1905"]
[BlackElo "2151"]
[Annotator "ChessBase"]
[PlyCount "115"]
[EventDate "2023.11.13"]
[EventType "swiss"]
[EventCountry "ITA"]
[SourceTitle "playchess.com"]
[Source "ChessBase"]
[SourceQuality "1"]
[TimeControl "40/5400+30:1800+30"]

1. d4 {[%emt 0:00:13]} Nf6 {[%emt 0:00:06]} 2. c4 {[%emt 0:00:11]} e6 {[%emt 0:00:09]} 3. Nc3 {[%emt 0:00:08]} Bb4 {[%emt 0:00:08]} 4. Qc2 {[%emt 0:00:09]} O-O {[%emt 0:01:16]} 5. Nf3 {[%emt 0:00:09]} d6 {[%emt 0:04:33]} 6. a3 {[%emt 0:07:49]} Bxc3+ {[%emt 0:00:08]} 7. Qxc3 {[%emt 0:00:08]} b6 {[%emt 0:03:48]} 8. e3 {[%emt 0:03:13]} Bb7 {[%emt 0:00:11]} 9. Bd3 {[%emt 0:00:38]} Nbd7 {[%emt 0:01:36]} 10. b4 {[%emt 0:16:20]} Ne4 {[%emt 0:16:02]} 11. Qc2 {[%emt 0:00:28]} f5 {[%emt 0:00:19]} 12. O-O {[%emt 0:06:41]} c5 {[%emt 0:17:38]} 13. Bb2 {[%emt 0:06:04]} Qe7 {[%emt 0:04:31]} 14. Nd2 {[%emt 0:17:04]} Nxd2 {[%emt 0:06:12]} 15. Qxd2 {[%emt 0:00:08]} e5 {[%emt 0:08:16]} 16. Rad1 {[%emt 0:06:34]} cxd4 {[%emt 0:04:18]} 17. exd4 {[%emt 0:00:25]} e4 {[%emt 0:00:06]} 18. Bc2 {[%emt 0:04:23]} d5 {[%emt 0:01:33]} 19. Bb3 {[%emt 0:00:47]} Nf6 {[%emt 0:02:04]} 20. c5 {[%emt 0:03:45]} b5 {[%emt 0:00:49]} 21. Bc1 {[%emt 0:03:48]} Bc6 {[%emt 0:03:50]} 22. Qe2 {[%emt 0:02:36]} Qc7 {[%emt 0:03:43]} 23. g3 {[%emt 0:03:36]} Be8 {[%emt 0:05:31]} 24. Bf4 {[%emt 0:02:30]} Qc6 {[%emt 0:07:05]} 25. Rc1 {[%emt 0:04:11]} Bf7 {[%emt 0:01:56]} 26. Be5 {[%emt 0:03:18]} Ng4 {[%emt 0:02:52]} 27. Bd6 {[%emt 0:00:09]} Rfe8 {[%emt 0:00:12]} 28. a4 {[%emt 0:03:01]} a6 {[%emt 0:00:45]} 29. Ra1 {[%emt 0:00:24]} Nf6 {[%emt 0:02:00]} 30. Ra2 {[%emt 0:01:21]} Bh5 {[%emt 0:01:21]} 31. Qd2 {[%emt 0:01:00]} Bf7 {[%emt 0:01:31]} 32. Rfa1 {[%emt 0:02:29]} e3 {[%emt 0:00:37]} 33. fxe3 {[%emt 0:01:18]} Ne4 {[%emt 0:00:01]} 34. Qd3 {[%emt 0:00:36]} Nxd6 {[%emt 0:00:31]} 35. cxd6 {[%emt 0:00:08]} Rac8 {[%emt 0:01:16]} 36. axb5 {[%emt 0:00:50]} axb5 {[%emt 0:00:01]} 37. Rc2 {[%emt 0:01:18]} Qxd6 {[%emt 0:00:10]} 38. Rxc8 {[%emt 0:00:07]} Rxc8 {[%emt 0:00:04]} 39. Qxb5 {[%emt 0:00:49]} h6 {[%emt 0:01:01]} 40. Qd3 {[%emt 0:00:00]} Qxb4 {[%emt 0:00:00]} 41. Qxf5 {[%emt 0:05:34]} Qc3 {[%emt 0:10:23]} 42. Rf1 {[%emt 0:00:41]} Qxe3+ {[%emt 0:00:30]} 43. Kh1 {[%emt 0:00:12]} Qe6 {[%emt 0:00:42]} 44. Qxe6 {[%emt 0:04:53]} Bxe6 {[%emt 0:00:05]} 45. Re1 {[%emt 0:00:15]} Kf7 {[%emt 0:01:52]} 46. Re5 {[%emt 0:01:34]} Rd8 {[%emt 0:01:24]} 47. Kg2 {[%emt 0:02:39]} Ke7 {[%emt 0:02:49]} 48. g4 {[%emt 0:04:42]} Kd6 {[%emt 0:04:03]} 49. g5 {[%emt 0:01:40]} Rb8 {[%emt 0:00:24]} 50. Bd1 {[%emt 0:03:04]} Rb2+ {[%emt 0:01:33]} 51. Kg3 {[%emt 0:02:42]} Rb1 {[%emt 0:05:18]} 52. Bf3 {[%emt 0:02:13]} Rg1+ {[%emt 0:01:43]} 53. Kf4 {[%emt 0:00:34]} Ra1 {[%emt 0:03:23]} 54. gxh6 {[%emt 0:00:49]} gxh6 {[%emt 0:00:01]} 55. Rh5 {[%emt 0:00:17]} Ra4 {[%emt 0:00:10]} 56. Ke3 {[%emt 0:00:47]} Ra3+ {[%emt 0:00:09]} 57. Ke2 {[%emt 0:00:26]} Ra4 {[%emt 0:00:53]} 58. Ke3 {[%emt 0:00:08]} 1/2-1/2

[Event "FIDE WYCC Open U14 2023"]
[Site "Montesilvano"]
[Date "2023.11.14"]
[Round "2.27"]
[White "Myagmarsuren, Evsuld"]
[Black "Radzimski, Antoni"]
[Result "1/2-1/2"]
[ECO "C55"]
[WhiteElo "2150"]
[BlackElo "1904"]
[Annotator "ChessBase"]
[PlyCount "134"]
[EventDate "2023.11.13"]
[EventType "swiss"]
[EventCountry "ITA"]
[SourceTitle "playchess.com"]
[Source "ChessBase"]
[SourceQuality "1"]
[TimeControl "40/5400+30:1800+30"]

1. e4 {[%emt 0:00:01]} e5 {[%emt 0:00:07]} 2. Nf3 {[%emt 0:00:06]} Nc6 {[%emt 0:00:05]} 3. Bc4 {[%emt 0:00:07]} Nf6 {[%emt 0:00:04]} 4. d3 {[%emt 0:00:07]} Be7 {[%emt 0:00:05]} 5. O-O {[%emt 0:00:09]} O-O {[%emt 0:00:03]} 6. Re1 {[%emt 0:00:10]} d6 {[%emt 0:00:19]} 7. a4 {[%emt 0:00:05]} Kh8 {[%emt 0:00:10]} 8. Nc3 {[%emt 0:01:40]} Bg4 {[%emt 0:04:34]} 9. h3 {[%emt 0:00:36]} Bh5 {[%emt 0:00:18]} 10. Nd5 {[%emt 0:02:11]} Nxd5 {[%emt 0:16:20]} 11. Bxd5 {[%emt 0:00:22]} Bxf3 {[%emt 0:06:54]} 12. Qxf3 {[%emt 0:00:14]} Nd4 {[%emt 0:00:49]} 13. Qd1 {[%emt 0:00:17]} c6 {[%emt 0:00:15]} 14. Ba2 {[%emt 0:00:12]} Bg5 {[%emt 0:05:14]} 15. c3 {[%emt 0:05:50]} Ne6 {[%emt 0:00:34]} 16. g3 {[%emt 0:00:59]} Bxc1 {[%emt 0:05:28]} 17. Rxc1 {[%emt 0:00:12]} Qf6 {[%emt 0:00:40]} 18. Kg2 {[%emt 0:03:26]} Rad8 {[%emt 0:01:20]} 19. a5 {[%emt 0:05:30]} g6 {[%emt 0:14:03]} 20. h4 {[%emt 0:02:16]} Kg7 {[%emt 0:01:37]} 21. b4 {[%emt 0:02:59]} Rfe8 {[%emt 0:02:02]} 22. Qe2 {[%emt 0:01:06]} Nc7 {[%emt 0:01:06]} 23. Qe3 {[%emt 0:03:11]} d5 {[%emt 0:07:51]} 24. exd5 {[%emt 0:04:07]} Nxd5 {[%emt 0:06:34]} 25. Qxa7 {[%emt 0:01:02]} e4 {[%emt 0:04:30]} 26. Bxd5 {[%emt 0:02:01]} cxd5 {[%emt 0:04:29]} 27. Re3 {[%emt 0:18:06]} d4 {[%emt 0:04:53]} 28. cxd4 {[%emt 0:00:19]} Rxd4 {[%emt 0:01:37]} 29. Qxb7 {[%emt 0:05:25]} Rxd3 {[%emt 0:00:36]} 30. Rc6 {[%emt 0:14:01]} Qf5 {[%emt 0:02:06]} 31. Rc5 {[%emt 0:00:12]} Qf6 {[%emt 0:00:56]} 32. Rxd3 {[%emt 0:04:58]} exd3 {[%emt 0:00:05]} 33. Qf3 {[%emt 0:02:13]} Rd8 {[%emt 0:04:51]} 34. Qxf6+ {[%emt 0:00:40]} Kxf6 {[%emt 0:00:02]} 35. Rc1 {[%emt 0:00:13]} Ke5 {[%emt 0:00:24]} 36. a6 {[%emt 0:02:06]} Rb8 {[%emt 0:01:28]} 37. a7 {[%emt 0:06:38]} Ra8 {[%emt 0:00:09]} 38. Rc7 {[%emt 0:06:59]} d2 {[%emt 0:00:29]} 39. Rd7 {[%emt 0:00:17]} Rxa7 {[%emt 0:00:21]} 40. Rxd2 {[%emt 0:00:00]} Rb7 {[%emt 0:00:00]} 41. Rb2 {[%emt 0:00:34]} Ke4 {[%emt 0:07:58]} 42. b5 {[%emt 0:01:09]} Rb6 {[%emt 0:00:20]} 43. Rb4+ {[%emt 0:00:21]} Kd5 {[%emt 0:00:56]} 44. Kf3 {[%emt 0:00:20]} Kc5 {[%emt 0:00:31]} 45. Rb2 {[%emt 0:00:15]} f6 {[%emt 0:04:03]} 46. Rc2+ {[%emt 0:06:36]} Kd5 {[%emt 0:01:03]} 47. Rd2+ {[%emt 0:00:09]} Ke5 {[%emt 0:00:55]} 48. Rb2 {[%emt 0:00:28]} h5 {[%emt 0:01:27]} 49. Ke3 {[%emt 0:03:19]} g5 {[%emt 0:02:23]} 50. Rb4 {[%emt 0:00:37]} Kd5 {[%emt 0:01:31]} 51. Kf3 {[%emt 0:03:17]} Ke5 {[%emt 0:02:52]} 52. Ke3 {[%emt 0:03:29]} Kd5 {[%emt 0:00:11]} 53. Kd3 {[%emt 0:00:27]} Kc5 {[%emt 0:02:46]} 54. Kc3 {[%emt 0:00:33]} Kd5 {[%emt 0:00:54]} 55. g4 {[%emt 0:09:32]} hxg4 {[%emt 0:05:27]} 56. hxg5 {[%emt 0:00:09]} fxg5 {[%emt 0:00:15]} 57. Rxg4 {[%emt 0:00:24]} Rf6 {[%emt 0:00:26]} 58. Rxg5+ {[%emt 0:01:49]} Kd6 {[%emt 0:00:17]} 59. Kb4 {[%emt 0:00:51]} Rxf2 {[%emt 0:00:30]} 60. Ka5 {[%emt 0:00:19]} Kc7 {[%emt 0:00:35]} 61. Rg7+ {[%emt 0:00:16]} Kb8 {[%emt 0:00:18]} 62. Ka6 {[%emt 0:00:46]} Rf6+ {[%emt 0:00:29]} 63. b6 {[%emt 0:00:36]} Rf8 {[%emt 0:00:06]} 64. Rg6 {[%emt 0:01:02]} Rh8 {[%emt 0:01:17]} 65. Kb5 {[%emt 0:01:47]} Rh5+ {[%emt 0:01:51]} 66. Kc6 {[%emt 0:00:14]} Rh8 {[%emt 0:00:03]} 67. b7 {[%emt 0:00:34]} Rf8 {[%emt 0:00:30]} 1/2-1/2

[Event "FIDE WYCC Open U14 2023"]
[Site "Montesilvano"]
[Date "2023.11.14"]
[Round "2.28"]
[White "Sharshenbekov, Emir"]
[Black "Farias, David Nuno M E"]
[Result "0-1"]
[ECO "B26"]
[WhiteElo "1893"]
[BlackElo "2149"]
[Annotator "NA"]
[PlyCount "80"]
[EventDate "2023.11.13"]
[EventType "swiss"]
[EventCountry "ITA"]
[SourceTitle "playchess.com"]
[Source "ChessBase"]
[SourceQuality "1"]
[TimeControl "40/5400+30:1800+30"]

1. e4 {[%emt 0:00:04]} c5 {[%emt 0:00:18]} 2. Nc3 {[%emt 0:00:32]} d6 {[%emt 0:00:34]} 3. g3 {[%emt 0:00:45]} Nc6 {[%emt 0:00:54]} 4. Bg2 {[%emt 0:01:10]} g6 {[%emt 0:00:48]} 5. d3 {[%emt 0:01:06]} Bg7 {[%emt 0:00:50]} 6. Be3 {[%emt 0:00:59]} Rb8 {[%emt 0:02:39]} 7. Qd2 {[%emt 0:23:22]} b5 {[%emt 0:01:20]} 8. Nd1 {[%emt 0:01:30]} b4 {[%emt 0:07:34]} 9. c3 {[%emt 0:01:36]} bxc3 {[%emt 0:13:47]} 10. bxc3 {[%emt 0:00:06]} Ba6 {[%emt 0:03:30]} 11. f4 {[%emt 0:02:35]} e5 {[%emt 0:10:29]} 12. Ne2 {[%emt 0:12:12]} Nf6 {[%emt 0:03:12]} 13. Nf2 {[%emt 0:03:40]} O-O {[%emt 0:06:42]} 14. f5 {[%emt 0:09:53]} c4 {[%emt 0:08:29]} 15. fxg6 {[%emt 0:06:13]} hxg6 {[%emt 0:05:24]} 16. d4 {[%emt 0:00:57]} exd4 {[%emt 0:04:00]} 17. cxd4 {[%emt 0:01:17]} Nb4 {[%emt 0:02:26]} 18. O-O {[%emt 0:19:34]} Nd3 {[%emt 0:12:19]} 19. Rfb1 {[%emt 0:02:34]} Nxf2 {[%emt 0:02:00]} 20. Bxf2 {[%emt 0:00:07]} Ng4 {[%emt 0:03:59]} 21. Be1 {[%emt 0:03:21]} c3 {[%emt 0:04:13]} 22. Nxc3 {[%emt 0:00:18]} Qf6 {[%emt 0:01:17]} 23. Rd1 {[%emt 0:04:45]} Bh6 {[%emt 0:00:55]} 24. Nd5 {[%emt 0:00:30]} Qh8 {[%emt 0:00:28]} 25. Nf6+ {[%emt 0:02:53]} Qxf6 {[%emt 0:02:52]} 26. Qa5 {[%emt 0:00:51]} Be2 {[%emt 0:01:05]} 27. e5 {[%emt 0:00:31]} dxe5 {[%emt 0:01:11]} 28. dxe5 {[%emt 0:00:21]} Be3+ {[%emt 0:00:40]} 29. Kh1 {[%emt 0:00:03]} Qb6 {[%emt 0:00:29]} 30. Qa4 {[%emt 0:01:04]} Bxd1 {[%emt 0:00:30]} 31. Rxd1 {[%emt 0:00:03]} Nf2+ {[%emt 0:00:30]} 32. Bxf2 {[%emt 0:00:13]} Bxf2 {[%emt 0:00:00]} 33. Bd5 {[%emt 0:00:38]} Rbd8 {[%emt 0:01:00]} 34. Qe4 {[%emt 0:00:19]} Kg7 {[%emt 0:00:31]} 35. Qf4 {[%emt 0:01:16]} Be3 {[%emt 0:00:25]} 36. Qe4 {[%emt 0:00:27]} Bg5 {[%emt 0:00:35]} 37. Rd4 {[%emt 0:00:43]} Qc5 {[%emt 0:00:28]} 38. h4 {[%emt 0:00:23]} Be7 {[%emt 0:00:21]} 39. Rd3 {[%emt 0:00:32]} Qc1+ {[%emt 0:00:22]} 40. Kg2 {[%emt 0:00:00]} Qc2+ {[%emt 0:00:00]} 0-1

[Event "FIDE WYCC Open U14 2023"]
[Site "Montesilvano"]
[Date "2023.11.14"]
[Round "2.29"]
[White "Yun, Hungi"]
[Black "kiladze, Luka"]
[Result "1/2-1/2"]
[ECO "B33"]
[WhiteElo "1884"]
[BlackElo "2145"]
[Annotator "NA"]
[PlyCount "81"]
[EventDate "2023.11.13"]
[EventType "swiss"]
[EventCountry "ITA"]
[SourceTitle "playchess.com"]
[Source "ChessBase"]
[SourceQuality "1"]
[TimeControl "40/5400+30:1800+30"]

1. e4 {[%emt 0:00:04]} c5 {[%emt 0:00:02]} 2. Nf3 {[%emt 0:00:09]} Nc6 {[%emt 0:00:02]} 3. d4 {[%emt 0:00:14]} cxd4 {[%emt 0:00:04]} 4. Nxd4 {[%emt 0:00:06]} Nf6 {[%emt 0:00:03]} 5. Nc3 {[%emt 0:00:13]} e5 {[%emt 0:00:03]} 6. Ndb5 {[%emt 0:00:15]} d6 {[%emt 0:00:05]} 7. Bg5 {[%emt 0:00:13]} a6 {[%emt 0:00:05]} 8. Na3 {[%emt 0:00:06]} b5 {[%emt 0:00:04]} 9. Nd5 {[%emt 0:00:17]} Be7 {[%emt 0:00:03]} 10. Bxf6 {[%emt 0:00:07]} Bxf6 {[%emt 0:00:04]} 11. c3 {[%emt 0:00:09]} Rb8 {[%emt 0:00:02]} 12. Nc2 {[%emt 0:01:03]} Bg5 {[%emt 0:00:05]} 13. a4 {[%emt 0:00:30]} bxa4 {[%emt 0:00:21]} 14. Ncb4 {[%emt 0:00:09]} Nxb4 {[%emt 0:00:06]} 15. cxb4 {[%emt 0:00:12]} O-O {[%emt 0:00:06]} 16. Rxa4 {[%emt 0:00:12]} a5 {[%emt 0:00:03]} 17. b5 {[%emt 0:01:06]} Bd7 {[%emt 0:00:05]} 18. Nc3 {[%emt 0:00:08]} Be7 {[%emt 0:00:04]} 19. Bc4 {[%emt 0:10:43]} d5 {[%emt 0:00:05]} 20. exd5 {[%emt 0:20:46]} Bd6 {[%emt 0:00:15]} 21. O-O {[%emt 0:02:18]} f5 {[%emt 0:00:08]} 22. f4 {[%emt 0:22:38]} exf4 {[%emt 0:07:50]} 23. Ne2 {[%emt 0:17:20]} Bxb5 {[%emt 0:12:49]} 24. Bxb5 {[%emt 0:00:08]} Rxb5 {[%emt 0:00:04]} 25. Nxf4 {[%emt 0:06:55]} Qb6+ {[%emt 0:15:04]} 26. Kh1 {[%emt 0:00:26]} Rxb2 {[%emt 0:00:28]} 27. Ne6 {[%emt 0:05:48]} Rb8 {[%emt 0:02:23]} 28. Ra1 {[%emt 0:02:43]} g6 {[%emt 0:12:15]} 29. Qc1 {[%emt 0:02:28]} Rf2 {[%emt 0:10:47]} 30. Rxf2 {[%emt 0:02:20]} Qxf2 {[%emt 0:00:01]} 31. Qc3 {[%emt 0:00:01]} Qb2 {[%emt 0:00:23]} 32. Qxa5 {[%emt 0:01:55]} Qe5 {[%emt 0:05:50]} 33. g3 {[%emt 0:00:05]} Qe4+ {[%emt 0:09:42]} 34. Kg1 {[%emt 0:00:01]} Qe3+ {[%emt 0:01:16]} 35. Kh1 {[%emt 0:00:31]} h5 {[%emt 0:06:06]} 36. Re1 {[%emt 0:03:23]} Qf2 {[%emt 0:00:23]} 37. Qc3 {[%emt 0:00:42]} Qb2 {[%emt 0:01:44]} 38. Qxb2 {[%emt 0:02:33]} Rxb2 {[%emt 0:00:01]} 39. Ng5 {[%emt 0:00:28]} Kg7 {[%emt 0:01:10]} 40. Re6 {[%emt 0:00:00]} Bc5 {[%emt 0:00:00]} 41. Nf3 1/2-1/2